fUSD/lending_fUSD_20240514
["ID","MTS","AMOUNT","RATE_DAILY","PERIOD"]
[327037705,1715728254225,-500.0,0.00012997,2]
[327037706,1715728254235,-3146.55,0.00012997,2]
[327037707,1715728254244,-1430.61,0.00012997,2]
[327037708,1715728254254,-500.0,0.00012997,2]
[327037709,1715728254264,-1430.61,0.00012997,2]
[327037710,1715728254273,-1430.61,0.00012997,2]
[327037711,1715728254282,-524.83201589,0.00012997,2]
[327037712,1715728254292,-164.803889,0.00012997,2]
[327037713,1715728254301,-164.803889,0.00012997,2]
[327037714,1715728254310,-151.0,0.00012997,2]
[327037715,1715728254321,-1002.77,0.00012997,2]
[327037716,1715728254330,-151.0,0.00012997,2]
[327037717,1715728254339,-1002.77,0.00012997,2]
[327037718,1715728254348,-1002.77,0.00012997,2]
[327037719,1715728254357,-259.297528,0.00012997,2]
[327037720,1715728254366,-259.297528,0.00012997,2]
[327037721,1715728254376,-151.0,0.00012997,2]
[327037722,1715728254385,-500.0,0.00012997,2]
[327037723,1715728254394,-500.0,0.00012997,2]
[327037724,1715728254403,-259.297528,0.00012997,2]
[327037725,1715728254412,-500.0,0.00012997,2]
[327037726,1715728254421,-500.0,0.00012997,2]
[327037727,1715728254431,-259.297528,0.00012997,2]
[327037728,1715728254439,-500.0,0.00012997,2]
[327037729,1715728254448,-500.0,0.00012997,2]
[327037730,1715728254458,-500.0,0.00012997,2]
[327037731,1715728254467,-1810.37,0.00012997,2]
[327037732,1715728254476,-500.0,0.00012997,2]
[327037733,1715728254485,-1810.37,0.00012997,2]
[327037734,1715728254494,-500.0,0.00012997,2]
[327037735,1715728254503,-1810.37,0.00012997,2]
[327037736,1715728254512,-500.0,0.00012997,2]
[327037737,1715728254522,-500.0,0.00012997,2]
[327037738,1715728254531,-573.78406899,0.00012997,2]
[327037739,1715728254540,-500.0,0.00012997,2]
[327037740,1715728254549,-3156.28,0.00012997,2]
[327037741,1715728254559,-500.0,0.00012997,2]
[327037742,1715728254568,-3156.28,0.00012997,2]
[327037743,1715728254577,-500.0,0.00012997,2]
[327037744,1715728254586,-3156.28,0.00012997,2]
[327037745,1715728254595,-500.0,0.00012997,2]
[327037746,1715728254605,-281.53667204,0.00012997,2]
[327037747,1715728254614,-1591.24,0.00012997,2]
[327037748,1715728254623,-1591.24,0.00012997,2]
[327037749,1715728254632,-1591.24,0.00012997,2]
[327037750,1715728254642,-198.97826757,0.00012997,2]
[327037751,1715728254651,-300.770511,0.00012997,2]
[327037752,1715728254660,-300.770511,0.00012997,2]
[327037753,1715728254671,-500.0,0.00012997,2]
[327037754,1715728254683,-500.0,0.00012997,2]
[327037755,1715728254693,-500.0,0.00012997,2]
[327037756,1715728254702,-500.0,0.00012997,2]
[327037757,1715728254711,-500.0,0.00012997,2]
[327037758,1715728254722,-500.0,0.00012997,2]
[327037759,1715728254731,-500.0,0.00012997,2]
[327037760,1715728254741,-500.0,0.00012997,2]
[327037761,1715728254752,-500.0,0.00012997,2]
[327037762,1715728254762,-500.0,0.00012997,2]
[327037763,1715728254772,-500.0,0.00012997,2]
[327037764,1715728254781,-500.0,0.00012997,2]
[327037765,1715728254791,-500.0,0.00012997,2]
[327037766,1715728254800,-500.0,0.00012997,2]
[327037767,1715728254810,-500.0,0.00012997,2]
[327037768,1715728254821,-153.59,0.00012997,2]
[327037769,1715728254831,-500.0,0.00012997,2]
[327037770,1715728254840,-151.0,0.00012997,2]
[327037771,1715728254850,-297.84,0.00012997,2]
[327037772,1715728254860,-300.770511,0.00012997,2]
[327037773,1715728254871,-300.770511,0.00012997,2]
[327037774,1715728254881,-797.14,0.00012997,2]
[327037775,1715728254890,-797.14,0.00012997,2]
[327037776,1715728254899,-797.14,0.00012997,2]
[327037777,1715728254908,-112.56638191,0.00012997,2]
[327037778,1715728255128,-389.34435178,0.00012997,2]
[327037779,1715728255141,-1027.32926631,0.00012997,2]
[327037780,1715728255151,-19.40040949,0.00012997,2]
[327037781,1715728255166,-777.73959051,0.00012997,2]
[327037782,1715728255176,-371.68938861,0.00012997,2]
[327037783,1715728255319,-1157.55061139,0.00012997,2]
[327037784,1715728255329,-797.14,0.00012997,2]
[327037785,1715728255338,-1529.24,0.00012997,2]
[327037786,1715728255348,-500.0,0.00012997,2]
[327037787,1715728255358,-797.14,0.00012997,2]
[327037788,1715728255367,-1529.24,0.00012997,2]
[327037789,1715728255377,-1529.24,0.00012997,2]
[327037790,1715728255387,-500.0,0.00012997,2]
[327037791,1715728255396,-797.14,0.00012997,2]
[327037792,1715728255406,-1517.21,0.00012997,2]
[327037793,1715728255416,-797.14,0.00012997,2]
[327037794,1715728255426,-500.0,0.00012997,2]
[327037795,1715728255435,-1529.24,0.00012997,2]
[327037796,1715728255445,-797.14,0.00012997,2]
[327037797,1715728255455,-500.0,0.00012997,2]
[327037798,1715728255464,-1529.24,0.00012997,2]
[327037799,1715728255474,-1517.21,0.00012997,2]
[327037800,1715728255484,-797.14,0.00012997,2]
[327037801,1715728255493,-1352.26202629,0.00012997,2]
[327037802,1715728255506,-176.97797371,0.00012997,2]
[327037803,1715728255516,-1517.21,0.00012997,2]
[327037804,1715728255525,-797.14,0.00012997,2]
[327037805,1715728255535,-1529.24,0.00012997,2]
[327037806,1715728255544,-1517.21,0.00012997,2]
[327037807,1715728255554,-797.14,0.00012997,2]
[327037808,1715728255563,-1529.24,0.00012997,2]
[327037809,1715728255572,-1517.21,0.00012997,2]
[327037810,1715728255582,-797.21916012,0.00012997,2]
[327037811,1715728255591,-1529.24,0.00012997,2]
[327037812,1715728255600,-1517.21,0.00012997,2]
[327037813,1715728255610,-1529.24,0.00012997,2]
[327037814,1715728255619,-1517.21,0.00012997,2]
[327037815,1715728255628,-1517.21,0.00012997,2]
[327037816,1715728255638,-1517.21,0.00012997,2]
[327037817,1715728255647,-1529.42367107,0.00012997,2]
[327037818,1715728255657,-1517.21,0.00012997,2]
[327037819,1715728255671,-1517.21,0.00012997,2]
[327037820,1715728255684,-1517.36721177,0.00012997,2]
[327037821,1715728255695,-745.43,0.00012997,2]
[327037822,1715728255706,-745.43,0.00012997,2]
[327037823,1715728255719,-745.43,0.00012997,2]
[327037824,1715728255729,-745.43,0.00012997,2]
[327037825,1715728255739,-745.43,0.00012997,2]
[327037826,1715728255749,-745.43,0.00012997,2]
[327037827,1715728255761,-1989.56,0.00012997,2]
[327037828,1715728255772,-745.43,0.00012997,2]
[327037829,1715728255783,-1159.66231211,0.00012997,2]
[327037830,1715728256862,-657.3976295,0.00012997,2]
[327037831,1715728256879,-172.50005839,0.00012997,2]
[327037832,1715728256890,-198.23994161,0.00012997,2]
[327037833,1715728256906,-1791.32005839,0.00012997,2]
[327037834,1715728256917,-745.64,0.00012997,2]
[327037835,1715728256928,-500.0,0.00012997,2]
[327037836,1715728256938,-500.0,0.00012997,2]
[327037837,1715728256948,-500.0,0.00012997,2]
[327037838,1715728256958,-500.0,0.00012997,2]
[327037839,1715728256969,-500.0,0.00012997,2]
[327037840,1715728256979,-500.0,0.00012997,2]
[327037841,1715728256989,-500.0,0.00012997,2]
[327037842,1715728256999,-500.0,0.00012997,2]
[327037843,1715728257009,-500.0,0.00012997,2]
[327037844,1715728257019,-45.2839597,0.00012997,2]
[327037845,1715728257032,-454.7160403,0.00012997,2]
[327037846,1715728257043,-500.0,0.00012997,2]
[327037847,1715728257052,-479.56669272,0.00012997,2]
[327037848,1715728257063,-500.0,0.00012997,2]
[327037849,1715728257073,-427.46394638,0.00012997,2]
[327037850,1715728257083,-1433.3203871,0.00012997,2]
[327037851,1715728257096,-381.63516757,0.00012997,2]
[327037852,1715728257107,-213.18444533,0.00012997,2]
[327037853,1715728257118,-313.54155469,0.00012997,2]
[327037854,1715728257302,-162.50319315,0.00012945,2]
[327037855,1715728257313,-686.0,0.00012948,2]
[327037856,1715728257325,-1714.59844531,0.00012997,2]
[327037857,1715728257335,-2028.14,0.00012997,2]
[327037858,1715728257345,-2028.14,0.00012997,2]
[327037859,1715728257355,-2028.14,0.00012997,2]
[327037860,1715728257364,-2028.14,0.00012997,2]
[327037861,1715728257374,-2028.14,0.00012997,2]
[327037862,1715728257384,-2028.14,0.00012997,2]
[327037863,1715728257395,-2028.14,0.00012997,2]
[327037864,1715728257405,-2028.14,0.00012997,2]
[327037865,1715728257415,-1358.81,0.00012997,2]
[327037866,1715728257424,-1358.81,0.00012997,2]
[327037867,1715728257434,-2028.14,0.00012997,2]
[327037868,1715728257444,-909.52,0.00012997,2]
[327037869,1715728257453,-1358.81,0.00012997,2]
[327037870,1715728257463,-909.52,0.00012997,2]
[327037871,1715728257473,-1358.81,0.00012997,2]
[327037872,1715728257483,-909.52,0.00012997,2]
[327037873,1715728257493,-2028.14,0.00012997,2]
[327037874,1715728257503,-909.52,0.00012997,2]
[327037875,1715728257513,-2028.16596303,0.00012997,2]
[327037876,1715728257523,-1358.81,0.00012997,2]
[327037877,1715728257533,-909.52,0.00012997,2]
[327037878,1715728257543,-909.52,0.00012997,2]
[327037879,1715728257553,-909.52,0.00012997,2]
[327037880,1715728257564,-1358.81,0.00012997,2]
[327037881,1715728257574,-909.52,0.00012997,2]
[327037882,1715728257584,-1358.81,0.00012997,2]
[327037883,1715728257595,-909.52,0.00012997,2]
[327037884,1715728257605,-1358.81,0.00012997,2]
[327037885,1715728257615,-909.52,0.00012997,2]
[327037886,1715728257625,-1358.81,0.00012997,2]
[327037887,1715728257635,-909.52,0.00012997,2]
[327037888,1715728257646,-1358.81,0.00012997,2]
[327037889,1715728257656,-909.52,0.00012997,2]
[327037890,1715728257667,-1050.70520651,0.00012997,2]
[327037891,1715728257684,-308.10479349,0.00012997,2]
[327037892,1715728257694,-660.56275689,0.00012997,2]
[327037907,1715729433617,-162.50319315,0.00010999,2]
[327037908,1715729433627,-200.0,0.00011,2]
[327037909,1715729433636,-250.0,0.00011003,2]
[327037910,1715729433645,-150.0,0.00011017,2]
[327037912,1715729433655,-150.0,0.00011017,2]
[327037914,1715729433664,-8313.12874219,0.00011018,2]
[327037916,1715729433676,-1686.87125781,0.00011018,2]
[327037918,1715729433686,-264.58,0.00011019,2]
[327037920,1715729433695,-12233.11,0.00011019,2]
[327037922,1715729433704,-600.0,0.00011035,2]
[327037924,1715729433714,-286.01,0.00011044,2]
[327037925,1715729433723,-1651.94,0.00011047,2]
[327037926,1715729433733,-158.24,0.00011049,2]
[327037927,1715729433742,-2653.90192616,0.000113,2]
[327037928,1715729433752,-150.99,0.000113,2]
[327037929,1715729433761,-266.98,0.00011358,2]
[327037930,1715729433771,-200.0,0.00011399,2]
[327037931,1715729433780,-501.07,0.00011449,2]
[327037932,1715729433790,-501.07,0.00011481,2]
[327037933,1715729433801,-400.0,0.00011481,2]
[327037934,1715729433811,-2558.85,0.00011488,2]
[327037935,1715729433820,-501.07,0.00011512,2]
[327037936,1715729433830,-269.48,0.00011538,2]
[327037937,1715729433840,-175.72,0.00011543,2]
[327037938,1715729433849,-501.07,0.00011543,2]
[327037939,1715729433859,-501.07,0.00011575,2]
[327037940,1715729433869,-501.07,0.00011606,2]
[327037941,1715729433878,-501.07,0.00011638,2]
[327037942,1715729433888,-501.07,0.00011669,2]
[327037943,1715729433897,-501.07,0.000117,2]
[327037944,1715729433907,-501.07,0.00011732,2]
[327037945,1715729433917,-501.07,0.00011763,2]
[327037946,1715729433927,-501.07,0.00011795,2]
[327037947,1715729433936,-501.07,0.00011826,2]
[327037948,1715729433946,-501.07,0.00011857,2]
[327037949,1715729433956,-501.07,0.00011889,2]
[327037950,1715729433965,-501.07,0.0001192,2]
[327037951,1715729433975,-501.07,0.00011952,2]
[327037952,1715729433985,-169.44,0.00011977,2]
[327037953,1715729433995,-501.07,0.00011983,2]
[327037954,1715729434005,-501.07,0.00012014,2]
[327037955,1715729434015,-501.07,0.00012046,2]
[327037956,1715729434024,-19621.08328365,0.00012048,2]
[327037957,1715729434034,-7163.79,0.00012049,4]
[327037958,1715729434043,-299.99,0.00012049,2]
[327037959,1715729434057,-999.99,0.00012082,2]
[327037960,1715729434068,-168.99,0.00012155,2]
[327037961,1715729434078,-600.0,0.00012414,2]
[327037962,1715729434091,-582.786244,0.00012452,2]
[327037963,1715729434101,-4228.035911,0.00012452,2]
[327037964,1715729434111,-582.786244,0.00012607,2]
[327037965,1715729434122,-4228.035911,0.00012607,2]
[327037966,1715729434132,-4228.035911,0.00012763,2]
[327037967,1715729434143,-582.786244,0.00012763,2]
[327037968,1715729434152,-7500.0,0.00012846,2]
[327037969,1715729434162,-150.0,0.00012851,2]
[327037970,1715729434172,-150.0,0.00012865,2]
[327037971,1715729434182,-252.12383117,0.00012865,2]
[327037972,1715729434193,-155.76704409,0.00012875,2]
[327037973,1715729434203,-500.0,0.00012876,2]
[327037974,1715729434213,-606.23967928,0.00012876,2]
[327037975,1715729434223,-500.0,0.00012876,2]
[327037977,1715729434233,-506.27512355,0.00012876,2]
[327037979,1715729434243,-526.40263207,0.00012876,2]
[327037981,1715729434253,-500.0,0.00012876,2]
[327037983,1715729434262,-515.12197012,0.00012876,2]
[327037985,1715729434272,-500.0,0.00012876,2]
[327037987,1715729434282,-416.90228149,0.00012876,2]
[327037989,1715729434292,-500.0,0.00012876,2]
[327037991,1715729434303,-200.0,0.00012876,2]
[327037993,1715729434312,-445.33117263,0.00012876,2]
[327037995,1715729434322,-499.70242659,0.00012876,2]
[327037997,1715729434331,-441.57601438,0.00012876,2]
[327037999,1715729434341,-500.0,0.00012876,2]
[327038001,1715729434351,-500.0,0.00012876,2]
[327038003,1715729434360,-500.0,0.00012876,2]
[327038005,1715729434370,-900.74,0.00012876,2]
[327038007,1715729434379,-900.74,0.00012876,2]
[327038009,1715729434388,-500.0,0.00012876,2]
[327038011,1715729434398,-500.0,0.00012876,2]
[327038013,1715729434407,-524.58827067,0.00012876,2]
[327038015,1715729434417,-1031.07,0.00012876,2]
[327038017,1715729434427,-1031.07,0.00012876,2]
[327038018,1715729434437,-500.0,0.00012876,2]
[327038020,1715729434446,-895.95,0.00012876,2]
[327038023,1715729434456,-895.95,0.00012876,2]
[327038025,1715729434465,-500.0,0.00012876,2]
[327038027,1715729434475,-500.0,0.00012876,2]
[327038029,1715729434485,-315.17698828,0.00012876,2]
[327038031,1715729434495,-500.0,0.00012876,2]
[327038033,1715729434504,-500.0,0.00012876,2]
[327038034,1715729434514,-500.0,0.00012876,2]
[327038037,1715729434523,-500.0,0.00012876,2]
[327038039,1715729434533,-500.0,0.00012876,2]
[327038040,1715729434543,-500.0,0.00012876,2]
[327038041,1715729434552,-400.0,0.00012876,2]
[327038042,1715729434562,-898.6,0.00012876,2]
[327038043,1715729434571,-2048.37,0.00012876,2]
[327038044,1715729434580,-500.0,0.00012876,2]
[327038045,1715729434589,-500.0,0.00012876,2]
[327038046,1715729434599,-500.0,0.00012876,2]
[327038047,1715729434608,-575.96,0.00012876,2]
[327038048,1715729434617,-1202.27,0.00012876,2]
[327038049,1715729434627,-3193.72,0.00012876,2]
[327038050,1715729434636,-668.51,0.00012876,2]
[327038051,1715729434645,-668.51,0.00012876,2]
[327038052,1715729434654,-2104.18,0.00012876,2]
[327038053,1715729434663,-2104.18,0.00012876,2]
[327038054,1715729434672,-500.0,0.00012876,2]
[327038055,1715729434682,-500.0,0.00012876,2]
[327038057,1715729434691,-500.0,0.00012876,2]
[327038059,1715729434701,-500.0,0.00012876,2]
[327038061,1715729434710,-500.0,0.00012876,2]
[327038063,1715729434720,-500.72508033,0.00012876,2]
[327038065,1715729434730,-1835.49,0.00012876,2]
[327038067,1715729434739,-3244.81,0.00012876,2]
[327038069,1715729434749,-500.0,0.00012876,2]
[327038071,1715729434759,-549.21,0.00012876,2]
[327038073,1715729434768,-1326.38,0.00012876,2]
[327038075,1715729434778,-1326.38,0.00012876,2]
[327038077,1715729434788,-500.0,0.00012876,2]
[327038079,1715729434797,-15728.7,0.00012876,2]
[327038081,1715729434807,-1318.24,0.00012876,2]
[327038083,1715729434816,-1318.24,0.00012876,2]
[327038085,1715729434826,-249.18805148,0.00012876,2]
[327038087,1715729434835,-968.54,0.00012876,2]
[327038089,1715729434844,-500.0,0.00012876,2]
[327038091,1715729434854,-500.0,0.00012876,2]
[327038093,1715729434864,-500.0,0.00012876,2]
[327038095,1715729434874,-500.0,0.00012876,2]
[327038097,1715729434884,-561.77,0.00012876,2]
[327038099,1715729434894,-500.0,0.00012876,2]
[327038101,1715729434904,-500.0,0.00012876,2]
[327038103,1715729434913,-500.0,0.00012876,2]
[327038105,1715729434923,-500.0,0.00012876,2]
[327038107,1715729434933,-500.0,0.00012876,2]
[327038109,1715729434943,-593.28,0.00012876,2]
[327038111,1715729434952,-500.0,0.00012876,2]
[327038114,1715729434963,-500.0,0.00012876,2]
[327038115,1715729434972,-3031.08,0.00012876,2]
[327038118,1715729434982,-500.0,0.00012876,2]
[327038119,1715729434991,-1495.31,0.00012876,2]
[327038122,1715729435001,-526.92,0.00012876,2]
[327038124,1715729435010,-500.0,0.00012876,2]
[327038125,1715729435019,-2434.57,0.00012876,2]
[327038128,1715729435029,-910.87,0.00012876,2]
[327038129,1715729435039,-550.71,0.00012876,2]
[327038131,1715729435051,-500.0,0.00012876,2]
[327038133,1715729435061,-665.5,0.00012876,2]
[327038136,1715729435071,-500.0,0.00012876,2]
[327038138,1715729435081,-2625.1,0.00012876,2]
[327038140,1715729435092,-845.0,0.00012876,2]
[327038141,1715729435102,-1203.22,0.00012876,2]
[327038143,1715729435112,-500.0,0.00012876,2]
[327038146,1715729435122,-1932.12,0.00012876,2]
[327038147,1715729435134,-576.22,0.00012876,2]
[327038149,1715729435144,-515.86,0.00012876,2]
[327038152,1715729435154,-500.0,0.00012876,2]
[327038153,1715729435163,-500.0,0.00012876,2]
[327038155,1715729435173,-500.0,0.00012876,2]
[327038157,1715729435183,-1466.4,0.00012876,2]
[327038159,1715729435193,-500.0,0.00012876,2]
[327038161,1715729435202,-1876.4,0.00012876,2]
[327038163,1715729435212,-2322.2,0.00012876,2]
[327038166,1715729435222,-500.0,0.00012876,2]
[327038167,1715729435232,-1186.65,0.00012876,2]
[327038169,1715729435242,-616.81,0.00012876,2]
[327038172,1715729435252,-536.31,0.00012876,2]
[327038173,1715729435262,-500.0,0.00012876,2]
[327038176,1715729435271,-1398.58,0.00012876,2]
[327038178,1715729435281,-939.96,0.00012876,2]
[327038179,1715729435291,-500.0,0.00012876,2]
[327038180,1715729435301,-842.04,0.00012876,2]
[327038181,1715729435311,-500.0,0.00012876,2]
[327038182,1715729435320,-500.0,0.00012876,2]
[327038183,1715729435331,-500.0,0.00012876,2]
[327038184,1715729435340,-984.82,0.00012876,2]
[327038185,1715729435350,-1384.46,0.00012876,2]
[327038186,1715729435359,-4071.6,0.00012876,2]
[327038187,1715729435369,-500.0,0.00012876,2]
[327038188,1715729435379,-1161.1,0.00012876,2]
[327038189,1715729435388,-500.0,0.00012876,2]
[327038190,1715729435398,-4782.21,0.00012876,2]
[327038191,1715729435408,-2742.05,0.00012876,2]
[327038192,1715729435418,-500.0,0.00012876,2]
[327038193,1715729435427,-2130.06,0.00012876,2]
[327038194,1715729435437,-1585.31,0.00012876,2]
[327038195,1715729435446,-1221.14,0.00012876,2]
[327038196,1715729435455,-2464.44,0.00012876,2]
[327038197,1715729435465,-1300.78,0.00012876,2]
[327038198,1715729435474,-500.0,0.00012876,2]
[327038199,1715729435484,-500.0,0.00012876,2]
[327038200,1715729435494,-4617.34,0.00012876,2]
[327038201,1715729435504,-1799.45,0.00012876,2]
[327038202,1715729435513,-1395.3,0.00012876,2]
[327038203,1715729435522,-1924.59,0.00012876,2]
[327038204,1715729435531,-500.31,0.00012876,2]
[327038205,1715729435540,-500.0,0.00012876,2]
[327038206,1715729435550,-1221.87,0.00012876,2]
[327038207,1715729435560,-500.0,0.00012876,2]
[327038208,1715729435569,-500.0,0.00012876,2]
[327038209,1715729435578,-1263.69,0.00012876,2]
[327038210,1715729435587,-7775.04,0.00012876,2]
[327038211,1715729435596,-13157.44,0.00012876,2]
[327038212,1715729435605,-519.63,0.00012876,2]
[327038214,1715729435615,-500.0,0.00012876,2]
[327038215,1715729435624,-1828.67,0.00012876,2]
[327038216,1715729435634,-500.0,0.00012876,2]
[327038217,1715729435643,-600.45,0.00012876,2]
[327038218,1715729435652,-2540.7,0.00012876,2]
[327038219,1715729435662,-150.0,0.00012878,2]
[327038220,1715729435671,-182.11206201,0.00012889,2]
[327038221,1715729435680,-158.24,0.00012891,2]
[327038222,1715729435690,-150.0,0.00012892,2]
[327038223,1715729435699,-200.0,0.00012895,2]
[327038224,1715729435709,-200.0,0.00012896,2]
[327038225,1715729435719,-1000.0,0.00012896,2]
[327038226,1715729435729,-150.0,0.00012905,2]
[327038227,1715729435739,-400.0,0.00012916,2]
[327038228,1715729435749,-4228.035911,0.00012918,2]
[327038229,1715729435759,-582.786244,0.00012918,2]
[327038230,1715729435768,-150.0,0.00012919,2]
[327038231,1715729435778,-150.0,0.00012932,2]
[327038232,1715729435788,-900.74,0.00012943,2]
[327038233,1715729435797,-1031.07,0.00012943,2]
[327038234,1715729435808,-895.95,0.00012943,2]
[327038235,1715729435819,-500.0,0.00012943,2]
[327038236,1715729435829,-2048.37,0.00012943,2]
[327038237,1715729435838,-500.0,0.00012943,2]
[327038238,1715729435848,-668.51,0.00012943,2]
[327038239,1715729435858,-2104.18,0.00012943,2]
[327038240,1715729435867,-500.0,0.00012943,2]
[327038241,1715729435877,-500.0,0.00012943,2]
[327038242,1715729435886,-1835.49,0.00012943,2]
[327038243,1715729435896,-500.0,0.00012943,2]
[327038244,1715729435906,-1326.38,0.00012943,2]
[327038245,1715729435915,-500.0,0.00012943,2]
[327038246,1715729435926,-1318.24,0.00012943,2]
[327038247,1715729435935,-968.54,0.00012943,2]
[327038248,1715729435945,-641.9,0.00012943,2]
[327038249,1715729435956,-500.0,0.00012943,2]
[327038250,1715729435965,-2434.57,0.00012943,2]
[327038251,1715729435975,-1932.12,0.00012943,2]
[327038252,1715729435985,-500.0,0.00012943,2]
[327038253,1715729435994,-1186.65,0.00012943,2]
[327038254,1715729436004,-842.04,0.00012943,2]
[327038255,1715729436013,-2742.05,0.00012943,2]
[327038256,1715729436023,-2464.44,0.00012943,2]
[327038257,1715729436235,-1924.59,0.00012943,2]
[327038258,1715729436245,-1221.87,0.00012943,2]
[327038259,1715729436255,-1828.67,0.00012943,2]
[327038260,1715729436264,-2540.7,0.00012943,2]
[327038261,1715729436274,-500.0,0.00012944,2]
[327038262,1715729436283,-1202.27,0.00012944,2]
[327038263,1715729436293,-500.0,0.00012944,2]
[327038264,1715729436304,-500.0,0.00012944,2]
[327038265,1715729436314,-500.0,0.00012944,2]
[327038266,1715729436324,-561.77,0.00012944,2]
[327038267,1715729436334,-1495.31,0.00012944,2]
[327038268,1715729436343,-910.87,0.00012944,2]
[327038269,1715729436353,-845.0,0.00012944,2]
[327038270,1715729436362,-515.86,0.00012944,2]
[327038271,1715729436372,-2322.2,0.00012944,2]
[327038272,1715729436381,-616.81,0.00012944,2]
[327038273,1715729436391,-500.0,0.00012944,2]
[327038274,1715729436401,-4071.6,0.00012944,2]
[327038275,1715729436410,-1161.1,0.00012944,2]
[327038276,1715729436420,-4782.21,0.00012944,2]
[327038277,1715729436429,-2130.06,0.00012944,2]
[327038278,1715729436439,-1300.78,0.00012944,2]
[327038279,1715729436448,-4617.34,0.00012944,2]
[327038280,1715729436458,-1263.69,0.00012944,2]
[327038281,1715729436467,-13157.44,0.00012944,2]
[327038282,1715729436477,-500.0,0.00012945,2]
[327038283,1715729436486,-500.0,0.00012945,2]
[327038284,1715729436496,-500.0,0.00012945,2]
[327038285,1715729436505,-500.0,0.00012945,2]
[327038286,1715729436516,-500.0,0.00012945,2]
[327038287,1715729436525,-500.0,0.00012945,2]
[327038288,1715729436535,-500.0,0.00012945,2]
[327038289,1715729436544,-898.6,0.00012945,2]
[327038290,1715729436554,-2048.37,0.00012945,2]
[327038291,1715729436564,-500.0,0.00012945,2]
[327038292,1715729436573,-575.96,0.00012945,2]
[327038293,1715729436583,-1202.27,0.00012945,2]
[327038294,1715729436593,-3193.72,0.00012945,2]
[327038295,1715729436603,-500.0,0.00012945,2]
[327038296,1715729436612,-500.0,0.00012945,2]
[327038297,1715729436621,-564.14841272,0.00012945,2]
[327038298,1715729436630,-500.0,0.00012945,2]
[327038299,1715729436639,-500.0,0.00012945,2]
[327038300,1715729436649,-3244.81,0.00012945,2]
[327038301,1715729436658,-1835.49,0.00012945,2]
[327038302,1715729436668,-500.0,0.00012945,2]
[327038303,1715729436677,-549.21,0.00012945,2]
[327038304,1715729436687,-377.31545959,0.00012945,2]
[327038305,1715729436702,-122.68454041,0.00012945,2]
[327038306,1715729436712,-5191.31555959,0.00012945,2]
[327038307,1715729436723,-10537.38444041,0.00012945,2]
[327038308,1715729436733,-968.54,0.00012945,2]
[327038309,1715729436742,-500.0,0.00012945,2]
[327038310,1715729436751,-500.0,0.00012945,2]
[327038311,1715729436761,-359.03186657,0.00012945,2]
[327038312,1715729436770,-500.0,0.00012945,2]
[327038313,1715729436780,-561.77,0.00012945,2]
[327038314,1715729436790,-500.0,0.00012945,2]
[327038315,1715729436800,-500.0,0.00012945,2]
[327038316,1715729436809,-500.0,0.00012945,2]
[327038317,1715729436819,-500.0,0.00012945,2]
[327038318,1715729436828,-593.28,0.00012945,2]
[327038319,1715729436838,-500.0,0.00012945,2]
[327038320,1715729436847,-500.0,0.00012945,2]